Cogmind - Beta 12 @@@ ROGUE MODE // 2024.02.18 @ 13:47:46 // Winter2019/RPGLIKE Player: Luminiferous Result: Destroyed by MAIN.C with Omega Cannon Performance ------------- Evolutions (9) 4500 Regions Visited (24) 4800 Robots Destroyed (310) 1550 Value Destroyed (12640) 12640 Prototype IDs (51) 1020 Alien Tech Used (0) 0 Bonus (15162) 15162 TOTAL SCORE: 39672 Bonus ------- High Alert Combat Kills 2517 Follower Combat Kills 1070 Entered Garrisons 400 Used RIF Installer 1000 Aligned with FarCom 300 Met MAIN.C 5000 Destroyed MAIN.C Shell 5000 Friendly Fire -125 Cogmind --------- Core Integrity 0/1050 Matter 300/300 Energy 471/480 System Corruption 7% Temperature Cool (0) Movement Flying (36) Location -1/Command Parts ------- > --- POWER (2) -------- Light Quantum Reactor Light Quantum Reactor > --- PROPULSION (8) --- Impulse Thruster Array Impulse Thruster Array Impulse Thruster Array Impulse Thruster Array > --- UTILITY (10) ----- Advanced Weight Redist. System Experimental Core Analyzer Microactuators Advanced Actuator Array Force Booster Advanced Phase Shifter Graphene Brace Advanced Force Field > --- WEAPON (4) ------- Kinetic Spear Force Lance Force Lance Enhanced Force Lance > --- INVENTORY (6) ---- Protomatter-77 Protomatter-77 Mini Grenade Launcher Peak State ------------ > --- POWER ------------ Light Quantum Reactor Light Quantum Reactor > --- PROPULSION ------- Impulse Thruster Array Impulse Thruster Array Impulse Thruster Array Impulse Thruster Array > --- UTILITY ---------- Gravity Neutralizer Experimental Signal Interpreter Experimental Core Analyzer Microactuators Advanced Actuator Array Force Booster Reaction Control System Advanced Phase Shifter Layered Light Armor Plating Advanced Force Field > --- WEAPON ----------- Kinetic Spear Force Lance Force Lance Enhanced Force Lance > --- INVENTORY -------- Protomatter Protomatter Protomatter Protomatter Light Antimatter Reactor Mini Grenade Launcher [Rating: 175] Favorites ----------- Power Light Neutrino Core Engine Makeshift Power Source Power Core Light Neutrino Core Reactor Light Quantum Reactor Propulsion Cooled VTOL Module Treads Medium Treads Leg Aluminum Leg Wheel Compact Wheel Hover Unit Improved Hover Unit Flight Unit Cooled VTOL Module Utility Microactuators Device Microactuators Storage Medium Battery Processor Modified TNC Hackware Hacking Suite Protection Improved Medium Armor Plating Weapon Force Lance Energy Gun Small Laser Energy Cannon Heavy Disruptor Cannon Ballistic Gun Improved Assault Rifle Ballistic Cannon Light Cannon Launcher Mini Grenade Launcher Special Weapon Improved Remote Datajack Impact Weapon Power Maul Slashing Weapon Makeshift Axe Piercing Weapon Force Lance Special Melee Weapon Improved Datajack Build | -11 -10 -10 -9 -9 -9 -8 -8 -7 -7 -6 -6 -6 -5 -4 -4 -4 -4 -4 -3 -2 -2 -2 -1 -1 ------- Run | Jun Mat Min Mat Min Exi Min Mat Fac Gar Fac Low Low Fac Fac Was Fac Upp Upp Res Res Gar Res Acc Com Slots Evolved 20 | 3 1 . 3 1 1 1 1 1 1 1 . 1 . 1 . 1 . . 1 . . 1 1 . Power 1 | . . . 1 . . . . . . . . . . . . . . . . . . . . . Propulsion 7 | 1 . . 2 . . . . 1 . . . . . 1 . . . . . . . 1 1 . Utility 9 | 1 1 . . 1 . 1 1 . 1 1 . 1 . . . 1 . . . . . . . . Weapon 3 | 1 . . . . 1 . . . . . . . . . . . . . 1 . . . . . Parts Attached 442 | 4 16 2 16 9 1 3 18 46 11 25 5 2 44 25 8 34 9 . 47 35 . 56 25 1 Power 42 | 1 1 . 1 . . . 3 7 . 4 . . 9 . . 1 . . 5 3 . 7 . . Engine 10 | 1 . . 1 . . . 2 5 . 1 . . . . . . . . . . . . . . Core 23 | . 1 . . . . . 1 2 . 3 . . 9 . . 1 . . 3 1 . 2 . . Reactor 9 | . . . . . . . . . . . . . . . . . . . 2 2 . 5 . . Propulsion 117 | 2 6 . 10 3 . . 7 15 . 7 . . 4 4 6 2 . . 17 16 . 12 6 . Treads 9 | . . . . . . . . 1 . . . . 1 . 3 . . . 2 1 . 1 . . Leg 2 | . . . . . . . . . . . . . . . . . . . . . . 2 . . Wheel 6 | 2 1 . . . . . . . . 1 . . . . . . . . . 1 . . 1 . Hover 11 | . 5 . . . . . . . . . . . 1 1 . 1 . . 1 . . 2 . . Flight 89 | . . . 10 3 . . 7 14 . 6 . . 2 3 3 1 . . 14 14 . 7 5 . Utility 150 | . 3 . 1 1 . 1 6 19 1 8 5 1 17 7 . 14 7 . 12 13 . 21 12 1 Device 71 | . 1 . . 1 . . . 3 . 3 . . 10 5 . 6 2 . 4 9 . 15 11 1 Storage 3 | . . . . . . . . 1 . 1 1 . . . . . . . . . . . . . Processor 18 | . 1 . . . . 1 1 3 1 . 1 1 . 1 . 1 2 . 2 . . 2 1 . Hackware 1 | . . . . . . . 1 . . . . . . . . . . . . . . . . . Protection 57 | . 1 . 1 . . . 4 12 . 4 3 . 7 1 . 7 3 . 6 4 . 4 . . Artifact . | . . . . . . . . . . . . . . . . . . . . . . . . . Weapon 133 | 1 6 2 4 5 1 2 2 5 10 6 . 1 14 14 2 17 2 . 13 3 . 16 7 . Energy Gun 7 | 1 2 . . . . . . . . . . . . 1 . . 1 . 1 . . 1 . . Energy Cannon 6 | . . . . . . . . . . . . . 1 1 . 1 . . 1 . . 2 . . Ballistic Gun 11 | . 2 . 3 2 . 1 . . . 1 . . 1 . . . . . 1 . . . . . Ballistic Cannon 6 | . 2 1 . . . . . . . . . . 1 . 1 1 . . . . . . . . Launcher 31 | . . 1 1 2 . 1 . 1 5 1 . . 2 3 . 6 . . 1 1 . 5 1 . Special Weapon 2 | . . . . . . . . . . . . . 1 . . . . . . . . . 1 . Impact Weapon 1 | . . . . . . . . . . . . . . 1 . . . . . . . . . . Slashing Weapon 21 | . . . . 1 1 . 2 4 5 3 . 1 1 . . 2 . . 1 . . . . . Piercing Weapon 47 | . . . . . . . . . . . . . 7 8 1 7 1 . 8 2 . 8 5 . Special Melee Weapon 1 | . . . . . . . . . . 1 . . . . . . . . . . . . . . Unidentified Prototypes 26 | . . . 2 . . . . 3 . . . . 3 . . 3 . . 6 . . 5 4 . Parts Lost 5 | . . . . . . . . . . . . . . 1 . . . . . 1 . 1 . 2 Power . | . . . . . . . . . . . . . . . . . . . . . . . . . Propulsion . | . . . . . . . . . . . . . . . . . . . . . . . . . Utility 5 | . . . . . . . . . . . . . . 1 . . . . . 1 . 1 . 2 Weapon . | . . . . . . . . . . . . . . . . . . . . . . . . . Highest Loss Streak 2 | . . . . . . . . . . . . . . 1 . . . . . 1 . 1 . 2 To Critical Strikes . | . . . . . . . . . . . . . . . . . . . . . . . . . Average Slot Usage (%) 94 | . 96 100 99 100 100 100 99 98 100 98 100 100 99 96 90 94 94 95 94 88 77 83 81 83 Engine 2 | . 10 . 8 8 7 7 7 6 5 2 . . . . . . . . . . . . . . Core 6 | . 3 12 9 8 7 7 5 5 5 7 11 10 9 10 10 9 9 9 8 4 4 2 . . Reactor 1 | . . . . . . . . . . . . . . . . . . . . 3 4 5 8 8 Hover 1 | . 15 25 2 . . . . . . . . . . . . . . . . . . . . . Flight 21 | . . . 29 33 31 28 26 30 29 27 27 26 25 25 25 24 23 23 22 17 18 18 16 16 Device 19 | . 13 12 9 14 15 14 13 12 11 13 16 15 20 22 20 20 25 28 27 29 27 30 29 32 Processor 14 | . 11 12 9 8 7 14 19 18 22 22 22 26 21 17 20 19 16 14 13 10 4 7 8 4 Protection 4 | . . 12 9 8 7 7 5 5 5 4 5 5 4 5 . 4 3 4 3 3 . 2 4 4 Ballistic Gun 2 | . 20 . 16 8 7 7 1 . . . . . . . . . . . . . . . . . Ballistic Cannon 1 | . 5 24 1 . . . . . . . . . . . . . . . . . . . . . Slashing Weapon 6 | . . . . 2 3 7 12 17 16 16 16 15 7 5 5 4 4 4 2 . . . . . Piercing Weapon 6 | . . . . . . . . . . . . . 7 9 10 8 8 9 12 17 18 13 14 16 Naked Turns . | . . . . . . . . . . . . . . . . . . . . . . . . . Heaviest Build 90 | 7 14 14 23 28 29 29 35 40 35 37 37 37 42 43 42 50 52 52 62 74 65 83 89 90 Greatest Support 96 | 26 38 20 26 31 30 30 31 44 44 44 41 41 47 57 57 57 57 57 72 78 83 84 96 93 Greatest Overweight (x) 2 | . . . . . . . 1 1 . 2 . . 1 1 1 . . . 2 2 . 2 2 . Average Overweight (x) . | . . . . . . . . . . . . . . . . . . . . . . . . . Largest Inventory Capacity 6 | 3 3 3 4 4 4 4 4 4 4 4 4 4 4 4 4 6 6 6 6 6 6 6 6 6 Average Capacity 4 | 3 3 3 3 4 4 4 4 4 4 4 4 4 4 4 4 4 6 6 6 6 6 6 6 6 Most Carried 6 | 2 3 3 4 4 4 4 4 4 4 4 4 4 4 4 4 6 6 6 6 6 6 6 6 5 Average Carried 4 | . 1 3 3 3 3 3 3 3 3 3 4 3 3 3 3 4 6 6 5 5 2 4 5 4 Final Capacity 6 | 3 3 3 4 4 4 4 4 4 4 4 4 4 4 4 4 6 6 6 6 6 6 6 6 6 Final Carried 6 | . 3 3 4 4 4 3 4 4 3 4 4 3 4 3 4 6 6 6 6 6 2 6 4 3 Class Distribution -------------------- 40% | Hacker-Sprinter 18% | Hacker-Scout 13% | Hacker-Mutant 10% | Mutant 7% | Sprinter 6% | Scout Dominant Class ---------------- Mutant | -10/Materials Mutant | -10/Mines Sprinter | -9/Materials Sprinter | -9/Mines Sprinter | -9/Exiles Sprinter | -8/Mines Scout | -8/Materials Hacker-Scout | -7/Factory Hacker-Scout | -7/Garrison Hacker-Scout | -6/Factory Hacker-Sprinter | -6/Lower Caves Hacker-Sprinter | -6/Lower Caves Hacker-Sprinter | -5/Factory Hacker-Sprinter | -4/Factory Hacker-Sprinter | -4/Waste Hacker-Sprinter | -4/Factory Hacker-Sprinter | -4/Upper Caves Hacker-Sprinter | -4/Upper Caves Hacker-Sprinter | -3/Research Hacker-Sprinter | -2/Research Hacker-Sprinter | -2/Garrison Hacker-Sprinter | -2/Research Hacker-Mutant | -1/Access Hacker-Mutant | -1/Command Resources | -11 -10 -10 -9 -9 -9 -8 -8 -7 -7 -6 -6 -6 -5 -4 -4 -4 -4 -4 -3 -2 -2 -2 -1 -1 ----------- Run | Jun Mat Min Mat Min Exi Min Mat Fac Gar Fac Low Low Fac Fac Was Fac Upp Upp Res Res Gar Res Acc Com Matter Collected 5908 | 240 471 50 366 66 . 62 377 445 294 260 39 31 464 295 . 485 52 . 459 484 . 652 296 20 Remotely . | . . . . . . . . . . . . . . . . . . . . . . . . . Salvage Created 14705 | . 448 9 548 8 . 22 526 1266 488 472 . . 984 840 . 298 . . 2889 1284 133 2206 1424 860 Parts 844 | . 34 1 43 5 . 11 25 73 29 41 . . 48 56 . 12 3 . 129 87 4 143 88 12 Haulers Intercepted 21 | . 1 . 2 . . . 3 1 . 1 . . 2 1 . . . . 3 2 . 3 2 . Recyclers Shooed . | . . . . . . . . . . . . . . . . . . . . . . . . . Parts Field Recycled . | . . . . . . . . . . . . . . . . . . . . . . . . . Retrieved Matter . | . . . . . . . . . . . . . . . . . . . . . . . . . Parts Self-Destructed 4 | . . . . . . . . . . . 1 . . . . . 3 . . . . . . . Prevented 4 | . . . . . . . . . . . 4 . . . . . . . . . . . . . Kills | -11 -10 -10 -9 -9 -9 -8 -8 -7 -7 -6 -6 -6 -5 -4 -4 -4 -4 -4 -3 -2 -2 -2 -1 -1 ------- Run | Jun Mat Min Mat Min Exi Min Mat Fac Gar Fac Low Low Fac Fac Was Fac Upp Upp Res Res Gar Res Acc Com Combat Hostiles Destroyed 201 | . 13 3 11 5 . 6 12 16 18 6 . . 7 7 . 3 1 . 25 19 1 30 16 2 Melee 133 | . . . . . . . 5 16 7 6 . . 7 3 . 3 1 . 25 15 1 26 16 2 Guns 18 | . 10 . 6 1 . 1 . . . . . . . . . . . . . . . . . . Cannons 4 | . 3 1 . . . . . . . . . . . . . . . . . . . . . . AOE 46 | . . 2 5 4 . 5 7 . 11 . . . . 4 . . . . . 4 . 4 . . Classes Destroyed 15 | . 4 . 3 . . . 1 4 2 . . . . . . . . . . 1 . . . . Worker 21 | . . . 3 . . . 1 1 . 2 . . 5 2 . . . . 1 1 . 4 1 . Builder 5 | . . . . . . . 1 1 . . . . . 2 . . . . . 1 . . . . Tunneler 4 | . . . . . . . . 2 . . . . . 2 . . . . . . . . . . Hauler 21 | . 1 . 2 . . . 3 1 . 1 . . 2 1 . . . . 3 2 . 3 2 . Recycler 14 | . . . 1 . . . 1 3 . . . . 2 2 . 1 . . 3 1 . . . . Operator 6 | . . . . . . . . 1 . 1 . . 2 1 . . . . . . . 1 . . Watcher 37 | . 3 . 1 . . . . 4 . 3 . . 1 4 . . . . 7 4 . 4 5 1 Swarmer 57 | . 5 3 7 5 . 6 8 . 10 . . . . 4 . . . . . 5 . 4 . . Cutter 6 | . . . . . . . . . . . . . . . . . . . . 6 . . . . Grunt 44 | . 8 . 3 . . . 1 5 3 1 . . 2 . . . . . 8 4 . 5 4 . Brawler 1 | . . . . . . . . . 1 . . . . . . . . . . . . . . . Duelist 2 | . . . . . . . . . 1 . . . . . . . . . . . . . 1 . Sentry 27 | . . . 1 . . . 3 8 1 2 . . . 1 . . . . 2 . 1 5 2 1 Hunter 20 | . . . . . . . . 1 . 1 . . 1 . . 1 . . 5 . . 9 2 . Programmer 43 | . . . . . . . . 2 2 2 . . 4 2 . 2 1 . 10 4 . 7 7 . Thug 1 | . . . 1 . . . . . . . . . . . . . . . . . . . . . Best Kill Streak 9 | . 4 3 9 3 . 3 6 4 5 4 . . 4 5 . 2 1 . 9 7 1 5 6 2 Combat Bots Only 6 | . 4 3 4 3 . 3 4 2 5 1 . . 2 5 . 2 1 . 5 6 1 4 5 1 Max Kills in Single Turn 5 | . 1 2 2 3 . 2 5 1 3 1 . . 1 4 . 1 1 . 1 4 1 4 1 1 Gunslinging 1 | . . . 1 . . . . . . . . . . . . . . . . . . . . . Exploded 4 | . . 2 2 2 . 2 3 . 3 . . . . 4 . . . . . 3 . 4 . . Melee 2 | . . . . . . . 1 1 1 1 . . 1 1 . 1 1 . 1 2 1 1 1 1 Uniques/NPCs Destroyed 1 | . . . . . . . . . . . . . . . . . . . . . . . . 1 MAIN.C Shell (-1/Command) Combat | -11 -10 -10 -9 -9 -9 -8 -8 -7 -7 -6 -6 -6 -5 -4 -4 -4 -4 -4 -3 -2 -2 -2 -1 -1 -------- Run | Jun Mat Min Mat Min Exi Min Mat Fac Gar Fac Low Low Fac Fac Was Fac Upp Upp Res Res Gar Res Acc Com Damage Taken 10067 | . 405 52 916 69 . 52 232 618 638 204 . 45 281 453 . 363 . . 971 1530 138 772 379 1949 Core 7217 | . 337 34 645 50 . 38 157 415 420 153 . 45 186 329 . 264 . . 709 1078 110 583 261 1403 Absorbed by Shields 1188 | . . . . . . . . . . . . . . . . . . . . . 18 398 379 393 Redirected to Core 5917 | . 226 34 490 40 . 30 136 294 325 118 . . 171 275 . 183 . . 562 933 94 462 254 1290 Regen/Repaired (Parts) 578 | . 13 . . . . . 83 171 . 234 . . . . . 77 . . . . . . . . Core Remaining (%) 83 | 100 . 93 . . . 47 46 . 90 . . 95 91 . . . . 90 87 . . 100 . . Volleys Fired 132 | . 41 3 28 4 . 6 8 . 13 1 . . 2 6 . 6 1 . 2 2 . 5 4 . Largest 2 | . 2 2 2 2 . 2 2 . 1 1 . . 1 1 . 1 1 . 1 1 . 1 1 . Hottest 110 | . 90 70 70 53 . 53 53 . 30 30 . . 57 110 . 49 94 . 65 30 . 30 30 . Shots Fired 212 | . 80 6 54 8 . 12 10 . 13 1 . . 2 6 . 6 1 . 2 2 . 5 4 . Gun 133 | . 70 . 46 4 . 9 2 . . . . . . . . . 1 . 1 . . . . . Cannon 19 | . 10 5 2 . . . . . . . . . 1 1 . . . . . . . . . . Launcher 60 | . . 1 6 4 . 3 8 . 13 1 . . 1 5 . 6 . . 1 2 . 5 4 . Special . | . . . . . . . . . . . . . . . . . . . . . . . . . Kinetic 143 | . 74 5 48 4 . 9 2 . . . . . 1 . . . . . . . . . . . Thermal 1 | . . . . . . . . . . . . . . . . . 1 . . . . . . . Explosive 59 | . . 1 6 4 . 3 8 . 13 1 . . 1 5 . 5 . . 1 2 . 5 4 . Electromagnetic 9 | . 6 . . . . . . . . . . . . 1 . 1 . . 1 . . . . . Robot Hit Streak 9 | . 8 2 9 1 . 2 . . 4 . . . . 1 . 2 . . . . . 4 . . Robot Miss Streak 4 | . 3 1 2 4 . 2 . . 1 . . . . . . . . . . . . . . . Penetration Max . | . . . . . . . . . . . . . . . . . . . . . . . . . Secondary Targets 2 | . . . 2 . . . . . . . . . . . . . . . . . . . . . Max Gunslinging Chain 1 | . . . 1 . . . . . . . . . . . . . . . . . . . . . Shots Hit Robots 683 | . 51 3 32 1 . 4 25 79 20 25 . . 31 37 . 9 5 . 100 56 4 91 41 69 Core Hits 386 | . 23 3 23 7 . 7 20 31 21 14 . . 18 18 . 13 1 . 52 35 2 54 22 22 Critical Kills . | . . . . . . . . . . . . . . . . . . . . . . . . . Critical Parts Destroyed . | . . . . . . . . . . . . . . . . . . . . . . . . . Critical Strikes 85 | . . . . . . . 2 14 2 1 . . 4 4 . 2 . . 14 11 . 16 9 6 Sever 22 | . . . . . . . 2 14 2 1 . . 1 1 . 1 . . . . . . . . Impale 63 | . . . . . . . . . . . . . 3 3 . 1 . . 14 11 . 16 9 6 Melee Attacks 1088 | . . . . . . . 48 153 52 49 . 5 68 79 . 20 5 . 139 94 11 171 84 110 Impact . | . . . . . . . . . . . . . . . . . . . . . . . . . Slashing 365 | . . . . . . . 48 153 52 49 . 5 22 11 . 6 2 . 17 . . . . . Piercing 723 | . . . . . . . . . . . . . 46 68 . 14 3 . 122 94 11 171 84 110 Sneak Attacks 93 | . . . . . . . 5 17 2 6 . . 12 11 . . . . 10 4 3 17 6 . Combat Hostiles 26 | . . . . . . . 2 6 2 1 . . . 2 . . . . . . 3 7 3 . Follow-up Attacks 196 | . . . . . . . 4 21 3 6 . . 4 8 . 3 3 . 39 27 2 27 12 37 Damage Inflicted 39925 | . 813 202 1122 144 . 344 1658 3675 1642 1320 . . 1738 2337 . 509 211 . 6288 3843 407 6294 3253 4125 Guns 1249 | . 701 . 474 16 . 46 12 . . . . . . . . . . . . . . . . . Cannons 201 | . 112 54 35 . . . . . . . . . . . . . . . . . . . . . Explosions 3626 | . . 148 613 128 . 298 474 . 846 . . . . 258 . 152 . . . 345 . 364 . . Melee 34849 | . . . . . . . 1172 3675 796 1320 . . 1738 2079 . 357 211 . 6288 3498 407 5930 3253 4125 Ramming . | . . . . . . . . . . . . . . . . . . . . . . . . . Kinetic 1397 | . 760 54 509 16 . 46 12 . . . . . . . . . . . . . . . . . Thermal 202 | . . . 202 . . . . . . . . . . . . . . . . . . . . . Explosive 3424 | . . 148 411 128 . 298 474 . 846 . . . . 258 . 152 . . . 345 . 364 . . Electromagnetic 53 | . 53 . . . . . . . . . . . . . . . . . . . . . . . Impact . | . . . . . . . . . . . . . . . . . . . . . . . . . Slashing 8592 | . . . . . . . 1172 3675 796 1320 . . 564 115 . 112 102 . 736 . . . . . Piercing 26257 | . . . . . . . . . . . . . 1174 1964 . 245 109 . 5552 3498 407 5930 3253 4125 Highest Corruption 8 | . 1 1 . . . . . 3 3 . . 1 2 1 1 2 2 2 8 1 1 5 1 7 Average Corruption 2 | . 1 1 . . . . . 3 3 . . 1 1 1 1 1 2 2 5 1 1 2 1 1 Corruption Purged . | . . . . . . . . . . . . . . . . . . . . . . . . . Corruption Blocked . | . . . . . . . . . . . . . . . . . . . . . . . . . Effects 89 | . 10 2 . . . . . 7 8 . . 1 4 6 . 7 1 . 19 . . 18 2 4 Message Errors 21 | . 3 1 . . . . . . 4 . . . 1 2 . 4 . . 3 . . 3 . . Matter Fused 24 | . 2 . . . . . . 3 2 . . . 1 . . 2 . . 6 . . 5 1 2 Heat Flow Errors 11 | . . 1 . . . . . 2 1 . . . 2 1 . . . . 1 . . 3 . . Energy Discharges 18 | . 2 . . . . . . 2 1 . . 1 . 2 . . 1 . 4 . . 4 . 1 Parts Rejected 1 | . . . . . . . . . . . . . . . . . . . 1 . . . . . Data Loss (minor) 9 | . 1 . . . . . . . . . . . . . . 1 . . 4 . . 2 1 . Data Loss (major) 2 | . . . . . . . . . . . . . . 1 . . . . . . . . . 1 Alerts 1 | . . . . . . . . . . . . . . . . . . . . . . 1 . . Weapon Failures 2 | . 2 . . . . . . . . . . . . . . . . . . . . . . . Overload Shots . | . . . . . . . . . . . . . . . . . . . . . . . . . Overflow Damage 4225 | . 17 3 56 . . 11 71 424 102 28 . . 342 516 . 13 27 . 644 456 5 697 684 129 Projectiles 17 | . 17 . . . . . . . . . . . . . . . . . . . . . . . Explosions 140 | . . 3 56 . . 11 . . 16 . . . . 41 . 13 . . . . . . . . Melee 4068 | . . . . . . . 71 424 86 28 . . 342 475 . . 27 . 644 456 5 697 684 129 Knockbacks 2 | . 2 . . . . . . . . . . . . . . . . . . . . . . . Impact . | . . . . . . . . . . . . . . . . . . . . . . . . . Kinetic 2 | . 2 . . . . . . . . . . . . . . . . . . . . . . . Secondary . | . . . . . . . . . . . . . . . . . . . . . . . . . Self-Inflicted Damage 245 | . . . 118 . . . 17 . 68 . . . . . . . . . 4 . . 38 . . Shots 9 | . . . 3 . . . 1 . 3 . . . . . . . . . 1 . . 1 . . Rammed . | . . . . . . . . . . . . . . . . . . . . . . . . . Targets Rammed . | . . . . . . . . . . . . . . . . . . . . . . . . . Kicked . | . . . . . . . . . . . . . . . . . . . . . . . . . Crushed . | . . . . . . . . . . . . . . . . . . . . . . . . . Highest Temperature 334 | . 105 118 325 . . . . 191 210 . . . 334 203 . . 31 . 128 5 . 238 8 7 Average Temperature 81 | . 33 36 135 . . . . 89 104 . . . 113 93 . . 17 . 67 3 . 104 6 7 Received Heat Transfer 1246 | . 153 . 252 . . . 117 129 87 39 . . 18 27 . 9 . . 60 18 45 95 45 152 Effects 4 | . . . 4 . . . . . . . . . . . . . . . . . . . . . Energy Bleed 1 | . . . 1 . . . . . . . . . . . . . . . . . . . . . Interference 3 | . . . 3 . . . . . . . . . . . . . . . . . . . . . Siege Activations . | . . . . . . . . . . . . . . . . . . . . . . . . . Robots Corrupted . | . . . . . . . . . . . . . . . . . . . . . . . . . Combat Hostiles . | . . . . . . . . . . . . . . . . . . . . . . . . . Parts Fried . | . . . . . . . . . . . . . . . . . . . . . . . . . Impact Corruptions . | . . . . . . . . . . . . . . . . . . . . . . . . . Robots Melted . | . . . . . . . . . . . . . . . . . . . . . . . . . Combat Hostiles . | . . . . . . . . . . . . . . . . . . . . . . . . . Parts Melted 1 | . . . . . . . . . . . . . . . . 1 . . . . . . . . Heat Transferred 150 | . . . 150 . . . . . . . . . . . . . . . . . . . . . Parts Sabotaged . | . . . . . . . . . . . . . . . . . . . . . . . . . Parts Stolen . | . . . . . . . . . . . . . . . . . . . . . . . . . Parts Stripped . | . . . . . . . . . . . . . . . . . . . . . . . . . Power Chain Reactions . | . . . . . . . . . . . . . . . . . . . . . . . . . Missiles Intercepted . | . . . . . . . . . . . . . . . . . . . . . . . . . Alert | -11 -10 -10 -9 -9 -9 -8 -8 -7 -7 -6 -6 -6 -5 -4 -4 -4 -4 -4 -3 -2 -2 -2 -1 -1 ------- Run | Jun Mat Min Mat Min Exi Min Mat Fac Gar Fac Low Low Fac Fac Was Fac Upp Upp Res Res Gar Res Acc Com Peak Influence 1233 | . 294 174 1233 607 . 280 300 516 834 443 . . 394 564 171 938 . . 553 1027 891 1144 1163 931 Initial 770 | . . 83 67 480 . . 109 136 209 437 . . 94 192 171 119 . . 307 310 770 501 686 744 Average 398 | . 125 172 507 574 . 175 204 264 528 195 . . 223 332 171 413 . . 267 597 799 624 889 847 Maximum Alert Level 4 | . 1 . 4 2 . 1 1 2 3 2 . . 1 2 . 3 . . 2 3 3 4 4 3 Low Security (%) 30 | 100 65 100 20 . . 42 41 35 . 71 . . 44 16 100 32 . . 36 . . . . . Level 1 29 | . 34 . 22 . . 57 58 49 33 15 . . 55 40 . 28 . . 49 26 . 14 . . Level 2 20 | . . . 33 100 . . . 15 43 12 . . . 43 . 14 . . 14 42 . 47 15 . Level 3 17 | . . . 20 . . . . . 23 . . . . . . 24 . . . 31 100 36 70 100 Level 4 1 | . . . 2 . . . . . . . . . . . . . . . . . . 2 14 . Level 5 . | . . . . . . . . . . . . . . . . . . . . . . . . . High Security . | . . . . . . . . . . . . . . . . . . . . . . . . . Max Security . | . . . . . . . . . . . . . . . . . . . . . . . . . Squads Dispatched 53 | . 3 . 5 . . . 1 6 . 4 . . 4 2 . 4 . . 5 7 . 7 4 1 Investigation 13 | . 2 . 2 . . . . 2 . . . . 1 1 . 2 . . 1 . . 2 . . Extermination 15 | . . . . . . . . 2 . 2 . . 2 1 . 1 . . 2 1 . 3 1 . Reinforcement 16 | . 1 . 1 . . . 1 1 . 2 . . 1 . . 1 . . 2 5 . 1 . . Assault 7 | . . . 2 . . . . . . . . . . . . . . . . . . 1 3 1 Garrison 2 | . . . . . . . . 1 . . . . . . . . . . . 1 . . . . Intercept . | . . . . . . . . . . . . . . . . . . . . . . . . . Searches Triggered . | . . . . . . . . . . . . . . . . . . . . . . . . . Construction Impeded 1 | . . . . . . . 1 . . . . . . . . . . . . . . . . . Haulers Reinforced 4 | . . . . . . . . 1 . 1 . . . . . . . . 1 . . 1 . . Active Scanning Responses . | . . . . . . . . . . . . . . . . . . . . . . . . . Cargo Convoy Interrupts . | . . . . . . . . . . . . . . . . . . . . . . . . . Stealth | -11 -10 -10 -9 -9 -9 -8 -8 -7 -7 -6 -6 -6 -5 -4 -4 -4 -4 -4 -3 -2 -2 -2 -1 -1 --------- Run | Jun Mat Min Mat Min Exi Min Mat Fac Gar Fac Low Low Fac Fac Was Fac Upp Upp Res Res Gar Res Acc Com Distress Signals 27 | . 2 . 4 . . . 1 1 . 2 . . . . . 1 . . 5 7 . 4 . . Communications Jammed . | . . . . . . . . . . . . . . . . . . . . . . . . . Distress Signals . | . . . . . . . . . . . . . . . . . . . . . . . . . Times Spotted 431 | . 21 4 71 6 . 7 15 28 19 13 . 5 15 15 . 22 1 . 42 50 6 40 44 7 Peak Tracking Total 18 | . 4 3 18 3 . 3 5 4 6 4 . 5 5 4 . 5 1 . 7 11 9 4 17 10 Tactical Retreats 46 | . 3 . 8 . . 1 1 6 2 2 . 1 2 1 . 1 . . 2 6 1 3 4 2 Traps | -11 -10 -10 -9 -9 -9 -8 -8 -7 -7 -6 -6 -6 -5 -4 -4 -4 -4 -4 -3 -2 -2 -2 -1 -1 ------- Run | Jun Mat Min Mat Min Exi Min Mat Fac Gar Fac Low Low Fac Fac Was Fac Upp Upp Res Res Gar Res Acc Com Traps Triggered 20 | . 2 . 1 . . . . 3 2 3 . . . 1 . 1 . . 1 3 3 . . . Indirectly . | . . . . . . . . . . . . . . . . . . . . . . . . . Trap Hack Attempts . | . . . . . . . . . . . . . . . . . . . . . . . . . Triggered . | . . . . . . . . . . . . . . . . . . . . . . . . . Disarmed . | . . . . . . . . . . . . . . . . . . . . . . . . . Reprogrammed . | . . . . . . . . . . . . . . . . . . . . . . . . . Reused . | . . . . . . . . . . . . . . . . . . . . . . . . . Traps Extracted . | . . . . . . . . . . . . . . . . . . . . . . . . . Installed 1 | . . . . . . . . . . . 1 . . . . . . . . . . . . . Triggered 2 | . . . . . . . . . . . 2 . . . . . . . . . . . . . Machines | -11 -10 -10 -9 -9 -9 -8 -8 -7 -7 -6 -6 -6 -5 -4 -4 -4 -4 -4 -3 -2 -2 -2 -1 -1 ---------- Run | Jun Mat Min Mat Min Exi Min Mat Fac Gar Fac Low Low Fac Fac Was Fac Upp Upp Res Res Gar Res Acc Com Machines Disabled 16 | . . . 4 . . 4 2 . . . . . 1 . . 5 . . . . . . . . Max in Single Turn 3 | . . . 3 . . 2 2 . . . . . 1 . . 1 . . . . . . . . Garrison Access 7 | . . . . . . . . 1 . 1 . . 1 1 . 1 . . . . . . 2 . Machines Repaired . | . . . . . . . . . . . . . . . . . . . . . . . . . Machines Sabotaged . | . . . . . . . . . . . . . . . . . . . . . . . . . Overloaded Fab Kills . | . . . . . . . . . . . . . . . . . . . . . . . . . Hacking | -11 -10 -10 -9 -9 -9 -8 -8 -7 -7 -6 -6 -6 -5 -4 -4 -4 -4 -4 -3 -2 -2 -2 -1 -1 --------- Run | Jun Mat Min Mat Min Exi Min Mat Fac Gar Fac Low Low Fac Fac Was Fac Upp Upp Res Res Gar Res Acc Com Machines Accessed 78 | . 4 . 3 . 2 . 2 17 1 9 . 1 4 5 . 8 . . 4 4 . 7 7 . Terminals 50 | . 3 . 3 . . . 1 9 1 6 . . 2 3 . 5 . . 3 3 . 6 5 . Fabricators 2 | . . . . . . . . . . . . . . 1 . . . . 1 . . . . . Repair Stations 10 | . 1 . . . . . 1 4 . 2 . . . . . 1 . . . . . 1 . . Recycling Units 3 | . . . . . . . . 2 . . . . 1 . . . . . . . . . . . Scanalyzers 1 | . . . . . . . . . . . . . . . . 1 . . . . . . . . Garrison Access 9 | . . . . . . . . 2 . 1 . . 1 1 . 1 . . . 1 . . 2 . Total Hacks 202 | . 11 . 10 . 2 . 10 38 1 35 . 1 8 9 . 26 . . 12 7 . 22 10 . Successful 126 | . 5 . 3 . 2 . 7 28 1 27 . 1 5 5 . 15 . . 7 1 . 13 6 . Failed 75 | . 6 . 7 . . . 3 10 . 8 . . 3 4 . 10 . . 5 6 . 9 4 . Catastrophic 17 | . 2 . 1 . . . . 3 . 2 . . 2 1 . . . . 1 1 . 3 1 . Database Lockouts 1 | . . . . . . . . . . . . . . . . 1 . . . . . . . . Manual 129 | . 7 . 11 . 1 . 6 23 . 18 . . 6 6 . 14 . . 10 6 . 16 5 . Terminals 146 | . 9 . 10 . . . 6 25 1 19 . . 5 7 . 20 . . 11 6 . 19 8 . Fabricators 2 | . . . . . . . . . . . . . . 1 . . . . 1 . . . . . Repair Stations 37 | . 2 . . . . . 4 9 . 15 . . . . . 4 . . . . . 3 . . Recycling Units 3 | . . . . . . . . 2 . . . . 1 . . . . . . . . . . . Scanalyzers 1 | . . . . . . . . . . . . . . . . 1 . . . . . . . . Garrison Access 10 | . . . . . . . . 2 . 1 . . 2 1 . 1 . . . 1 . . 2 . Terminal Hacks 45 | . 2 . 1 . 2 . 3 9 1 7 . 1 . 1 . 6 . . 4 . . 5 3 . Record 5 | . . . . . 1 . . . . 1 . . . 1 . 1 . . . . . 1 . . Part Schematic 1 | . . . . . . . . . . . . . . . . 1 . . . . . . . . Robot Analysis 3 | . . . . . . . . 1 . . . . . . . 1 . . . . . 1 . . Prototype ID Bank 1 | . . . . . . . . . . 1 . . . . . . . . . . . . . . Open Door 4 | . . . . . . . . . . . . 1 . . . . . . . . . . 3 . Open DSF 1 | . . . . . . . . 1 . . . . . . . . . . . . . . . . Level Access Points 1 | . . . . . . . . . . . . . . . . . . . 1 . . . . . Branch Access Points 1 | . . . . . . . . . . . . . . . . 1 . . . . . . . . Emergency Access Points 2 | . . . . . . . . . 1 . . . . . . 1 . . . . . . . . Terminal Index 4 | . . . . . . . . . . 1 . . . . . 1 . . 1 . . 1 . . Repair Station Index 1 | . . . . . . . . . . 1 . . . . . . . . . . . . . . Alert Level 8 | . 1 . 1 . . . 2 4 . . . . . . . . . . . . . . . . Unreport Threat 10 | . . . . . . . 1 3 . 2 . . . . . . . . 2 . . 2 . . Locate Traps 1 | . . . . . . . . . . 1 . . . . . . . . . . . . . . Hauler Manifests 1 | . 1 . . . . . . . . . . . . . . . . . . . . . . . EX-Prototype ID Bank 1 | . . . . . 1 . . . . . . . . . . . . . . . . . . . Fabricator Hacks 2 | . . . . . . . . . . . . . . 1 . . . . 1 . . . . . Network Status 2 | . . . . . . . . . . . . . . 1 . . . . 1 . . . . . Repair Station Hacks 33 | . 2 . . . . . 3 8 . 14 . . . . . 4 . . . . . 2 . . Scan Component 17 | . 1 . . . . . 2 4 . 7 . . . . . 2 . . . . . 1 . . Repair 16 | . 1 . . . . . 1 4 . 7 . . . . . 2 . . . . . 1 . . Recycling Unit Hacks . | . . . . . . . . . . . . . . . . . . . . . . . . . Scanalyzer . | . . . . . . . . . . . . . . . . . . . . . . . . . Garrison Access Hacks 10 | . . . . . . . . 2 . 1 . . 2 1 . 1 . . . 1 . . 2 . Unlock Access 2 | . . . . . . . . 1 . . . . . . . . . . . 1 . . . . Seal Access 7 | . . . . . . . . 1 . 1 . . 1 1 . 1 . . . . . . 2 . Coupler Status 1 | . . . . . . . . . . . . . 1 . . . . . . . . . . . Unauthorized Hacks 36 | . 1 . 2 . . . 1 9 . 5 . . 3 2 . 4 . . 2 . . 6 1 . Terminals 33 | . 1 . 2 . . . 1 7 . 5 . . 2 2 . 4 . . 2 . . 6 1 . Botnet 33 | . 1 . 2 . . . 1 7 . 5 . . 2 2 . 4 . . 2 . . 6 1 . Fabricators . | . . . . . . . . . . . . . . . . . . . . . . . . . Repair Stations . | . . . . . . . . . . . . . . . . . . . . . . . . . Recycling Units 3 | . . . . . . . . 2 . . . . 1 . . . . . . . . . . . Tunnel 3 | . . . . . . . . 2 . . . . 1 . . . . . . . . . . . Scanalyzers . | . . . . . . . . . . . . . . . . . . . . . . . . . Garrison Access . | . . . . . . . . . . . . . . . . . . . . . . . . . Data Cores Recovered 6 | . . . . . . . . 1 . 1 . . 1 1 . 1 . . . . . 1 . . Used 5 | . . . . . . . . 1 . 1 . . 1 1 . 1 . . . . . . . . Hacking Detections 54 | . 4 . 3 . . . 2 10 1 5 . . 2 3 . 7 . . 3 3 . 7 4 . Full Trace Events 8 | . 1 . 3 . . . . . . . . . . 1 . 1 . . . . . 2 . . Feedback Events . | . . . . . . . . . . . . . . . . . . . . . . . . . Feedback Blocked . | . . . . . . . . . . . . . . . . . . . . . . . . . Robot Schematics Acquired . | . . . . . . . . . . . . . . . . . . . . . . . . . Robots Built . | . . . . . . . . . . . . . . . . . . . . . . . . . Authchips . | . . . . . . . . . . . . . . . . . . . . . . . . . Time . | . . . . . . . . . . . . . . . . . . . . . . . . . Total Robot Build Rating . | . . . . . . . . . . . . . . . . . . . . . . . . . Part Schematics Acquired 1 | . . . . . . . . . . . . . . . . 1 . . . . . . . . Parts Built . | . . . . . . . . . . . . . . . . . . . . . . . . . Authchips . | . . . . . . . . . . . . . . . . . . . . . . . . . Time . | . . . . . . . . . . . . . . . . . . . . . . . . . Total Part Build Rating . | . . . . . . . . . . . . . . . . . . . . . . . . . Parts Repaired 15 | . 1 . . . . . 1 4 . 7 . . . . . 2 . . . . . . . . Time 589 | . 13 . . . . . 38 164 . 265 . . . . . 66 . . . . . 43 . . Parts Recycled . | . . . . . . . . . . . . . . . . . . . . . . . . . Recycled Matter . | . . . . . . . . . . . . . . . . . . . . . . . . . Retrieved Matter . | . . . . . . . . . . . . . . . . . . . . . . . . . Retrieved Components . | . . . . . . . . . . . . . . . . . . . . . . . . . Parts Scanalyzed . | . . . . . . . . . . . . . . . . . . . . . . . . . Part Schematics Acquired . | . . . . . . . . . . . . . . . . . . . . . . . . . Parts Damaged . | . . . . . . . . . . . . . . . . . . . . . . . . . Bothacking | -11 -10 -10 -9 -9 -9 -8 -8 -7 -7 -6 -6 -6 -5 -4 -4 -4 -4 -4 -3 -2 -2 -2 -1 -1 ------------ Run | Jun Mat Min Mat Min Exi Min Mat Fac Gar Fac Low Low Fac Fac Was Fac Upp Upp Res Res Gar Res Acc Com Used RIF Installer 2 | . . . . . . . . . 1 . . . . . . . . . . . 1 . . . Watcher Feeds 1 | . . . . . . . . . . . . . . . . . . . . . 1 . . . Robots Hacked . | . . . . . . . . . . . . . . . . . . . . . . . . . Non-combat . | . . . . . . . . . . . . . . . . . . . . . . . . . Combat . | . . . . . . . . . . . . . . . . . . . . . . . . . Robot Hacks Applied . | . . . . . . . . . . . . . . . . . . . . . . . . . Relay Couplers Released . | . . . . . . . . . . . . . . . . . . . . . . . . . Fabnet Peak Effective % . | . . . . . . . . . . . . . . . . . . . . . . . . . Robots Rewired . | . . . . . . . . . . . . . . . . . . . . . . . . . Allies Hacked . | . . . . . . . . . . . . . . . . . . . . . . . . . Hacks Repelled . | . . . . . . . . . . . . . . . . . . . . . . . . . Allies | -11 -10 -10 -9 -9 -9 -8 -8 -7 -7 -6 -6 -6 -5 -4 -4 -4 -4 -4 -3 -2 -2 -2 -1 -1 -------- Run | Jun Mat Min Mat Min Exi Min Mat Fac Gar Fac Low Low Fac Fac Was Fac Upp Upp Res Res Gar Res Acc Com Total Allies 27 | . . 3 . 1 . . . . . . . . . . 20 3 . . . . . . . . Largest Group 23 | . . 3 3 1 . . . . . . . . . . 20 23 . . . . . . . . Highest-Rated Group 933 | . . 77 77 31 . . . . . . . . . . 795 933 . . . . . . . . Highest-Rated Ally 50 | . . 31 31 31 . . . . . . . . . . 50 50 . . . . . . . . Total Orders . | . . . . . . . . . . . . . . . . . . . . . . . . . Ally Attacks 192 | . . . 43 . . . . . . . . . . . . 149 . . . . . . . . Total Damage 5650 | . . . 501 . . . . . . . . . . . . 5149 . . . . . . . . Kills 34 | . . . 9 . . . . . . . . . . . . 25 . . . . . . . . Allies Corrupted 1 | . . . . . . . . . . . . . . . . 1 . . . . . . . . Allies Melted . | . . . . . . . . . . . . . . . . . . . . . . . . . Intel | -11 -10 -10 -9 -9 -9 -8 -8 -7 -7 -6 -6 -6 -5 -4 -4 -4 -4 -4 -3 -2 -2 -2 -1 -1 ------- Run | Jun Mat Min Mat Min Exi Min Mat Fac Gar Fac Low Low Fac Fac Was Fac Upp Upp Res Res Gar Res Acc Com Robot Analysis Total 3 | . . . . . . . . 1 . . . . . . . 1 . . . . . 1 . . Derelict Logs Recovered 8 | . . 2 . 3 . . . . . . . 2 . . . . 1 . . . . . . . Drone Launches 1 | . . . . . . . . . . . . . 1 . . . . . . . . . . . Drone Recoveries . | . . . . . . . . . . . . . . . . . . . . . . . . . Exploration | -11 -10 -10 -9 -9 -9 -8 -8 -7 -7 -6 -6 -6 -5 -4 -4 -4 -4 -4 -3 -2 -2 -2 -1 -1 ------------- Run | Jun Mat Min Mat Min Exi Min Mat Fac Gar Fac Low Low Fac Fac Was Fac Upp Upp Res Res Gar Res Acc Com Turns Passed 13046 | 39 929 332 604 240 58 135 746 1494 384 894 78 190 737 567 132 903 131 7 1060 534 109 1533 852 358 Spaces Moved 22934 | 31 974 521 1123 639 213 411 964 2979 804 1322 288 754 1839 1318 109 1406 401 28 1756 911 164 2083 1520 376 Core 26 | . . . . . . . . . . 1 . . 8 4 3 . . . 3 4 . 2 1 . Treads . | . . . . . . . . . . . . . . . . . . . . . . . . . Legs 7 | 7 . . . . . . . . . . . . . . . . . . . . . . . . Wheels 353 | 24 329 . . . . . . . . . . . . . . . . . . . . . . . Hover 1243 | . 645 521 77 . . . . . . . . . . . . . . . . . . . . . Flight 21305 | . . . 1046 639 213 411 964 2979 804 1321 288 754 1831 1314 106 1406 401 28 1753 907 164 2081 1519 376 Fastest Speed 11 | 90 56 56 26 26 26 26 26 11 11 23 23 23 23 23 24 24 24 24 24 24 24 24 26 36 Average Speed 30 | 96 69 56 30 26 26 26 32 25 23 23 23 23 23 23 26 24 24 24 32 32 30 35 35 36 Slowest Speed 200 | 120 100 56 56 27 26 26 101 93 24 150 23 23 100 100 100 24 24 24 150 150 31 150 200 36 Overloaded Moves 33 | . . . . . . . . 3 5 . . . . . . . . . . 4 17 4 . . Propulsion Burnouts . | . . . . . . . . . . . . . . . . . . . . . . . . . Robots Hopped 100 | . . . 19 3 . 5 2 2 . 4 . . 5 16 . 1 . . . 4 . 8 30 1 Cave-ins Triggered 2 | . . . . . . . . . . . . . . 1 . . . . . . . . . 1 Exploration Rate (%) 48 | 2 98 88 87 98 61 78 57 54 67 24 53 84 28 22 77 29 59 7 23 24 29 29 27 19 Regions Visited 24 Branch Regions 9 Pre-discovered Areas 7 | . . 1 . 1 1 . . 2 . . . 1 1 . . . . . . . . . . . Known Exits Taken 19 | . 1 1 1 1 1 1 1 1 . 1 1 1 1 . . 1 1 1 1 1 . 1 1 . Unknown Exits Taken 1 | 1 . . . . . . . . . . . . . . . . . . . . . . . . Scrap Searched 13 | . . 1 . 2 . 1 . . . . 2 3 . . . . 4 . . . . . . . Spaces Dug 364 | . . . . . . . 60 39 7 9 . 3 23 77 . 5 . . 16 15 2 38 48 22 Terrain Destroyed 728 | . . 6 46 37 . 23 136 39 109 19 . 3 23 86 . 8 . . 16 33 2 72 48 22 Melee 207 | . . . . . . . 14 39 7 9 . 3 16 22 . 5 . . 10 15 2 30 13 22 Projectile 2 | . . . . . . . . . . . . . 2 . . . . . . . . . . . AOE 519 | . . 6 46 37 . 23 122 . 102 10 . . 5 64 . 3 . . 6 18 . 42 35 . Terrain Rammed . | . . . . . . . . . . . . . . . . . . . . . . . . . Walls Destroyed . | . . . . . . . . . . . . . . . . . . . . . . . . . Machines Disabled . | . . . . . . . . . . . . . . . . . . . . . . . . . Actions | -11 -10 -10 -9 -9 -9 -8 -8 -7 -7 -6 -6 -6 -5 -4 -4 -4 -4 -4 -3 -2 -2 -2 -1 -1 --------- Run | Jun Mat Min Mat Min Exi Min Mat Fac Gar Fac Low Low Fac Fac Was Fac Upp Upp Res Res Gar Res Acc Com Total 27841 | 40 1159 553 1319 695 214 420 1344 3601 930 1855 298 767 2083 1488 213 1955 432 27 2174 1091 220 2764 1702 497 Wait 2775 | . 83 28 128 40 . 6 286 342 31 425 . . 96 50 81 442 6 . 201 35 . 369 85 41 Move 22729 | 30 973 520 1085 632 212 400 959 2975 802 1314 287 753 1828 1288 108 1403 400 27 1755 903 163 2067 1472 373 Hop 82 | . . . 18 3 . 5 2 2 . 3 . . 5 14 . 1 . . . 4 . 7 17 1 Pick Up 184 | 4 16 . 11 3 1 . 9 10 . 17 . 4 13 13 5 21 . . 4 5 . 39 6 3 Fast Attach 216 | . 4 . 7 1 . . 3 27 . 6 5 . 26 5 6 12 9 . 41 30 . 17 17 . Attach 83 | 3 9 . 1 3 1 1 4 2 1 10 . 1 3 11 2 8 . . . 1 . 19 3 . Detach 9 | . . . . . . . . 1 . . . . . 1 . 1 . . . . . 5 1 . Swap 144 | 1 3 2 8 5 . 2 11 17 10 9 . 1 15 9 . 14 . . 6 4 . 21 5 1 Drop 376 | 2 15 . 18 3 . . 15 43 . 14 5 4 39 18 11 29 9 . 47 25 4 48 24 3 Fire 132 | . 41 3 28 4 . 6 8 . 13 1 . . 2 6 . 6 1 . 2 2 . 5 4 . Melee 663 | . . . . . . . 39 102 36 30 . 3 45 53 . 11 2 . 74 54 5 105 49 55 Ram . | . . . . . . . . . . . . . . . . . . . . . . . . . Kick . | . . . . . . . . . . . . . . . . . . . . . . . . . Crush . | . . . . . . . . . . . . . . . . . . . . . . . . . Escape Stasis 79 | . . . . . . . . 35 20 10 . . . . . . . . . . 13 . . 1 Rewire . | . . . . . . . . . . . . . . . . . . . . . . . . . Trap 1 | . . . . . . . . . . . 1 . . . . . . . . . . . . . Miscellaneous 368 | . 15 . 15 1 . . 8 45 17 16 . 1 11 20 . 7 5 . 44 28 35 62 19 19 Route ------- -11/Junkyard -10/Materials (discovered 5 exits: *Mat x3 / *Min x2) -10/Mines (discovered 2 exits: *Mat x2) -9/Materials (discovered 4 exits: *Mat x3 / *Min) -9/Mines (discovered 3 exits: *Mat x2 / *Exi) -9/Exiles (discovered 2 exits: *Min x2) -8/Mines -8/Materials (discovered 2 exits: *Fac x2) -7/Factory (discovered 4 exits: *Fac x2 / *Sto / Gar) -7/Garrison -6/Factory (discovered 2 exits: *Low x2) -6/Lower Caves -6/Lower Caves -5/Factory -4/Factory -4/Waste -4/Factory (discovered 3 exits: *Res / *Upp x2) -4/Upper Caves -4/Upper Caves -3/Research (discovered 4 exits: *Res x3 / Tes) -2/Research -2/Garrison -2/Research (discovered 2 exits: *Acc / *Qua) -1/Access -1/Command History --------- Turn | Location | Event 1 | -11/Junkyard | Upgraded with Propulsion slot (x1) 1 | -11/Junkyard | Upgraded with Utility slot (x1) 1 | -11/Junkyard | Upgraded with Weapon slot (x1) 1 | -11/Junkyard | Discovered new exit (range 1) 40 | -11/Junkyard | Entered Materials 128 | -10/Materials | Discovered new exit (range 16) 303 | -10/Materials | Build established: Mutant 365 | -10/Materials | Discovered new exit (range 14) 384 | -10/Materials | Identified exit to Materials 449 | -10/Materials | Identified exit to Mines 486 | -10/Materials | Discovered exit to Materials (range 14) 624 | -10/Materials | Discovered exit to Mines (range 16) 651 | -10/Materials | Repaired Hover Unit 840 | -10/Materials | Discovered exit to Materials (range 8) 873 | -10/Materials | Reached level 2 933 | -10/Materials | Upgraded with Utility slot (x1) 969 | -10/Materials | Entered Mines 995 | -10/Mines | Learned Materials stockpile data 1238 | -10/Mines | Discovered exit to Materials (range 16) 1252 | -10/Mines | Escorted by a lone wolf Derelict 1286 | -10/Mines | Learned location of Storage (-7) 1301 | -10/Mines | Entered Materials 1301 | -9/Materials | Accompanied by 3 allies 1303 | -9/Materials | Reached level 3 1306 | -9/Materials | Led the pair of lost Derelicts to an unsafe place 1348 | -9/Materials | Reached level 4 1359 | -9/Materials | Upgraded with Power slot (x1) 1359 | -9/Materials | Upgraded with Propulsion slot (x1) 1571 | -9/Materials | Reached level 5 1610 | -9/Materials | Discovered new exit (range 8) 1612 | -9/Materials | Identified exit to Materials 1701 | -9/Materials | First assault squad dispatched 1716 | -9/Materials | Upgraded with Propulsion slot (x1) 1744 | -9/Materials | Build established: Sprinter 1812 | -9/Materials | Discovered exit to Materials (range 11) 1885 | -9/Materials | Discovered exit to Materials (range 4) 1900 | -9/Materials | Discovered new exit (range 16) 1904 | -9/Materials | Identified exit to Mines 1905 | -9/Materials | Entered Mines 1907 | -9/Mines | Reached level 6 1935 | -9/Mines | Learned 2 Materials zone layouts 1941 | -9/Mines | A weapon hastily lodged in a ceiling crevice suddenly fell to the ground 1941 | -9/Mines | Upgraded with Utility slot (x1) 1967 | -9/Mines | Received a Rocket Launcher from a helpful Derelict 1972 | -9/Mines | Learned location of 1 exit from Lower Caves 2004 | -9/Mines | Core integrity fell below 50% 2042 | -9/Mines | Discovered exit to Materials (range 6) 2048 | -9/Mines | Learned location of Zion (-6) 2072 | -9/Mines | Discovered exit to Materials (range 14) 2076 | -9/Mines | Received a Mining Laser from a helpful Derelict 2144 | -9/Mines | Deemed a non-threat by the Exiles lab entrance 2144 | -9/Mines | Discovered new exit (range 5) 2145 | -9/Mines | Identified exit to Exiles 2145 | -9/Mines | Entered Exiles 2149 | -9/Exiles | Discovered new exit (range 15) 2152 | -9/Exiles | Met 8R-AWN 2157 | -9/Exiles | Met EX-HEX 2164 | -9/Exiles | Met EX-BIN 2167 | -9/Exiles | Aligned with FarCom system 2167 | -9/Exiles | Given EX-Vault access code 2174 | -9/Exiles | Opened EX-Vault 2175 | -9/Exiles | Upgraded with Weapon slot (x1) 2176 | -9/Exiles | Found Modified TNC 2183 | -9/Exiles | Warned to stay clear of 0b10 Research branches 2188 | -9/Exiles | Exiles lab attacked by MAIN.C 2200 | -9/Exiles | Discovered new exit (range 14) 2202 | -9/Exiles | Identified exit to Mines 2203 | -9/Exiles | Left Exiles lab with Modified TNC 2203 | -9/Exiles | Entered Mines 2205 | -8/Mines | Reached level 7 2206 | -8/Mines | Upgraded with Utility slot (x1) 2335 | -8/Mines | Discovered exit to Materials (range 6) 2338 | -8/Mines | Entered Materials 2339 | -8/Materials | Identified exit to Factory 2339 | -8/Materials | Core integrity fell below 50% 2340 | -8/Materials | Reached level 8 2378 | -8/Materials | Repaired Hrd. Medium Armor Plating 2418 | -8/Materials | Reached level 9 2433 | -8/Materials | Upgraded with Utility slot (x1) 2748 | -8/Materials | Build established: Scout 2828 | -8/Materials | Discovered exit to Factory (range 5) 3084 | -8/Materials | Entered Factory 3085 | -7/Factory | Core integrity fell below 50% 3086 | -7/Factory | Reached level 10 3086 | -7/Factory | Upgraded with Propulsion slot (x1) 3144 | -7/Factory | Reached level 11 3539 | -7/Factory | Repaired Hrd. Medium Armor Plating 3557 | -7/Factory | Discovered new exit (range 5) 3558 | -7/Factory | Identified exit to Factory 3726 | -7/Factory | Build established: Hacker-Scout 3769 | -7/Factory | Repaired Axe 3819 | -7/Factory | Repaired Imp. Medium Armor Plating 3871 | -7/Factory | Reached level 12 4236 | -7/Factory | Discovered exit to Factory (range 14) 4370 | -7/Factory | Repaired Imp. Medium Armor Plating 4445 | -7/Factory | Discovered new exit (range 13) 4449 | -7/Factory | Identified exit to Storage 4497 | -7/Factory | Garrison activated, responded to threat 4578 | -7/Factory | Identified exit to Garrison 4578 | -7/Factory | Entered Garrison 4580 | -7/Garrison | Reached level 13 4581 | -7/Garrison | Upgraded with Utility slot (x1) 4584 | -7/Garrison | Triggered checkpoint 4692 | -7/Garrison | Triggered checkpoint 4700 | -7/Garrison | Triggered checkpoint 4716 | -7/Garrison | Triggered checkpoint 4727 | -7/Garrison | Discovered exit to Factory (range 19) 4742 | -7/Garrison | Reached level 14 4826 | -7/Garrison | Triggered checkpoint 4848 | -7/Garrison | Triggered checkpoint 4933 | -7/Garrison | Installed Relay Interface Framework 4962 | -7/Garrison | Entered Factory 4964 | -6/Factory | Reached level 15 5046 | -6/Factory | Discovered new exit (range 9) 5048 | -6/Factory | Identified exit to Lower Caves 5141 | -6/Factory | Repaired Imp. Medium Armor Plating 5186 | -6/Factory | Repaired Mic. Nuclear Core 5231 | -6/Factory | Repaired Imp. Deuterium Engine 5315 | -6/Factory | Repaired Cld. VTOL Module 5377 | -6/Factory | Upgraded with Utility slot (x1) 5488 | -6/Factory | Repaired Mic. Nuclear Core 5512 | -6/Factory | Repaired Microactuators 5532 | -6/Factory | Repaired Hrd. Medium Armor Plating 5604 | -6/Factory | Spotted B-75 Beast 5644 | -6/Factory | Reached level 16 5691 | -6/Factory | Discovered exit to Lower Caves (range 5) 5856 | -6/Factory | Entered Lower Caves 5857 | -6/Lower Caves | Identified exit to Lower Caves 5934 | -6/Lower Caves | Entered another Lower Caves area 5936 | -6/Lower Caves | Reached level 17 5936 | -6/Lower Caves | Upgraded with Utility slot (x1) 5965 | -6/Lower Caves | Discovered new exit (range 10) 5967 | -6/Lower Caves | Identified exit to Factory 5980 | -6/Lower Caves | Encountered a Warlord checkpoint 6086 | -6/Lower Caves | Learned Factory trap positions 6124 | -6/Lower Caves | Entered Factory 6125 | -5/Factory | Loaded intel: 87 trap records 6126 | -5/Factory | Reached level 18 6433 | -5/Factory | Spotted B-75 Beast 6556 | -5/Factory | Build established: Hacker-Sprinter 6858 | -5/Factory | Discovered new exit (range 15) 6861 | -5/Factory | Identified exit to Factory 6861 | -5/Factory | Entered another Factory area 6863 | -4/Factory | Reached level 19 6900 | -4/Factory | Crushed by falling debris 7085 | -4/Factory | Discovered new exit (range 16) 7127 | -4/Factory | Identified exit to Upper Caves 7133 | -4/Factory | Reached level 20 7157 | -4/Factory | Upgraded with Propulsion slot (x1) 7428 | -4/Factory | Sucked down chute 7428 | -4/Factory | Entered Waste 7429 | -4/Waste | Joined by Warlord forces that had cleared the area 7494 | -4/Waste | Discovered new exit (range 10) 7517 | -4/Waste | Identified exit to Factory 7560 | -4/Waste | Entered Factory 7560 | -4/Factory | Accompanied by 20 allies 7605 | -4/Factory | Discovered exit to Upper Caves (range 15) 7605 | -4/Factory | Allied Derelicts emerged from ambush trap array 7657 | -4/Factory | Repaired Lgt. Neutrino Core 7680 | -4/Factory | Repaired Imp. Medium Armor Plating 7815 | -4/Factory | Reached level 21 7993 | -4/Factory | Reached level 22 8033 | -4/Factory | Found Prototype Slashing Weapon 8034 | -4/Factory | Identified Molecular Scythe 8067 | -4/Factory | Discovered new exit (range 14) 8070 | -4/Factory | Found Prototype Launcher 8070 | -4/Factory | Identified Com. Tesla Bomb Launcher 8072 | -4/Factory | Found Com. Tesla Bomb Launcher 8130 | -4/Factory | Identified exit to Research 8173 | -4/Factory | Reached level 23 8217 | -4/Factory | Found Hvy. Reflective Plating 8252 | -4/Factory | Central database locked down 8397 | -4/Factory | Reached level 24 8402 | -4/Factory | Upgraded with Utility slot (x1) 8463 | -4/Factory | Entered Upper Caves 8493 | -4/Upper Caves | Learned location of 1 exit from Research 8504 | -4/Upper Caves | Encountered a Warlord checkpoint 8583 | -4/Upper Caves | Discovered new exit (range 12) 8585 | -4/Upper Caves | Identified exit to Upper Caves 8594 | -4/Upper Caves | Entered another Upper Caves area 8600 | -4/Upper Caves | Discovered exit to Research (range 6) 8601 | -4/Upper Caves | Entered Research 8602 | -3/Research | Identified exit to Testing 8603 | -3/Research | Reached level 25 8735 | -3/Research | Found Prototype Processor 8735 | -3/Research | Identified Exp. Signal Interpreter 8778 | -3/Research | Identified exit to Research 8855 | -3/Research | Reached level 26 9015 | -3/Research | Found Prototype Slashing Weapon 9015 | -3/Research | Identified Vibroblade 9258 | -3/Research | Upgraded with Weapon slot (x1) 9433 | -3/Research | Reached level 27 9609 | -3/Research | Found Enh. Force Lance 9661 | -3/Research | Entered another Research area 9663 | -2/Research | Reached level 28 9803 | -2/Research | Reached level 29 10175 | -2/Research | Core integrity fell below 50% 10191 | -2/Research | Garrison activated, responded to threat 10191 | -2/Research | Reached level 30 10193 | -2/Research | Core integrity fell below 20% 10195 | -2/Research | Identified exit to Garrison 10195 | -2/Research | Entered Garrison 10200 | -2/Garrison | Expanded RIF knowledge: Watcher Feeds 10244 | -2/Garrison | Triggered checkpoint 10277 | -2/Garrison | Spotted B-90 Cyclops 10281 | -2/Garrison | Triggered checkpoint 10302 | -2/Garrison | Discovered new exit (range 9) 10304 | -2/Garrison | Identified exit to Research 10304 | -2/Garrison | Entered Research 10627 | -2/Research | Found Prototype Processor 10628 | -2/Research | Identified Exp. Core Analyzer 10776 | -2/Research | Found Hvy. Reactive Plating 10813 | -2/Research | Discovered new exit (range 16) 10828 | -2/Research | Identified exit to Quarantine 11243 | -2/Research | Reached level 31 11339 | -2/Research | Upgraded with Propulsion slot (x1) 11765 | -2/Research | Discovered new exit (range 10) 11832 | -2/Research | Identified exit to Access 11837 | -2/Research | First assault squad dispatched 11837 | -2/Research | Entered Access 11839 | -1/Access | Reached level 32 12005 | -1/Access | Reached level 33 12010 | -1/Access | Upgraded with Propulsion slot (x1) 12087 | -1/Access | First assault squad dispatched 12154 | -1/Access | Build established: Hacker-Mutant 12250 | -1/Access | Found Prototype Device 12250 | -1/Access | Identified Beam Splitter 12355 | -1/Access | Spotted B-99 Colossus 12635 | -1/Access | Spotted B-99 Colossus 12676 | -1/Access | Discovered new exit (range 7) 12678 | -1/Access | Identified exit to Command 12689 | -1/Access | Entered Command 12691 | -1/Command | Reached level 34 12831 | -1/Command | Spotted Combat Programmer 12864 | -1/Command | Crushed by falling debris 12939 | -1/Command | First assault squad dispatched 12943 | -1/Command | Met MAIN.C 12943 | -1/Command | Reached level 35 12946 | -1/Command | 0b10 Conduit disabled 12990 | -1/Command | Core integrity fell below 50% 13029 | -1/Command | Destroyed MAIN.C Shell 13032 | -1/Command | MAIN.C activated Command garrisons 13033 | -1/Command | Core integrity fell below 20% 13047 | -1/Command | Destroyed by MAIN.C with Omega Cannon Last Messages --------------- 13032_ ALERT: All Command garrisons activated. MAIN.C: Okay, we can do this the hard way, or you can surrender right here and now. I strongly suggest you join us, if not because we could do great things together, then because you don't stand a chance against the true might of 0b10. [Decision: Attack] 13032_ MAIN.C: "So be it!" 13033_ 0b10 Conduit collapses. 13036_ Dropped Protomatter-44. 13037_ Knocked back. 13039_ EMDS Slug penetrates Reinforced Barrier. 13042_ 0b10 Conduit collapses. 13043_ Kinetic Spear follow-up attack on MAIN.C. 13043_ Reaction Control System destroyed. 13043_ Lyr. Light Armor Plating destroyed. 13043_ Knocked back. 13044_ 0b10 Conduit collapses. 13046_ Kinetic Spear follow-up attack on MAIN.C. 13046_ Force Lance follow-up attack on MAIN.C. Map ----- +----------------------------------------------------+ | ?????????????????????????????????????????????????? | | ?????????????????????????????????????????????????? | | ?????????????????????????????????????????????????? | | ?????????????????????????????????????????????????? | | ?????????????????????????????????????????????????? | | ?????????????????????????????????????????????????? | | ?????????????????????????????????????????????????? | | ?????????????????????????????????????????????????? | | ?????????????????????????????????????????????????? | | ?????????????????????????????????????????????????? | | ?????????????????????????????????????????????????? | | ?????????????????????????????????????????????????? | | ?????????????????????????????????????????????????? | | ?????????????????????????????????????????????????? | | ?????????????????????????????????????????????????? | | ?????????????????????????????????????????????????? | | ??????????????##################?????????????????? | | ????????????""""" """" #?????????????????? | | ???????????? "" #???????#?????????? | | ????????????""" "" #######;########### | | ????????????""" """" + | | ????????????? " ; | | ????????????? """ p %p | | ??????????"" """ % ################### | | ?????????# " """ M #?????????????????? | | ?????????# " ! %@ #?????????????????? | | ?????????# " [![ #?????????????????? | | ?????????#""""""" !%= % #?????????????????? | | ??????????"" =%! #?????????????????? | | ?????????# #?????????????????? | | ?????????# #?????????????????? | | ?????????# " #?????????????????? | | ?????????" " #?????????????????? | | ?????????" """ " " " " #?????????????????? | | ?????????" " " " #?????????????????? | | ?????????# """""""""" " #?????????????????? | | ?????????? " """ " """""" "#?????????????????? | | ?????????? ?????"" " " " #?????????????????? | | ?????????????????##?############?????????????????? | | ?????????????????????????????????????????????????? | | ?????????????????????????????????????????????????? | | ?????????????????????????????????????????????????? | | ?????????????????????????????????????????????????? | | ?????????????????????????????????????????????????? | | ?????????????????????????????????????????????????? | | ?????????????????????????????????????????????????? | | ?????????????????????????????????????????????????? | | ?????????????????????????????????????????????????? | | ?????????????????????????????????????????????????? | | ?????????????????????????????????????????????????? | +----------------------------------------------------+ Best States ------------- Heat Dissipation 93 Energy Generation 60 Energy Capacity 480 Matter Stores 300 Matter Capacity 300 Sight Range 20 Terrain Scan Range 24 Terrain Scan Density 10 Additional Mass Support 12 Armor Coverage 225 Resistance: KI 20 Resistance: TH 30 Resistance: EX 20 Melee Speed Boost 50 Phase Shifting 15 Evasion (%) 87 Melee Accuracy 6 Core Analysis 8 Recoil Reduction 6 Force Boost 20 Offensive Hacking 20 Defensive Hacking 10 Item Schematics ----------------- Structural Scanner | -4/Factory | Hacked Robot Schematics ------------------ None Fabricated ------------ Nothing Alien Tech Used ----------------- None Achievements -------------- Ambidextrous Assassin Deadly Force Meet Your Maker Rockin' Loadout Treasure Hunter We Are Legion Challenges ------------ None RPGLIKE | -11 -10 -10 -9 -9 -9 -8 -8 -7 -7 -6 -6 -6 -5 -4 -4 -4 -4 -4 -3 -2 -2 -2 -1 -1 --------- Run | Jun Mat Min Mat Min Exi Min Mat Fac Gar Fac Low Low Fac Fac Was Fac Upp Upp Res Res Gar Res Acc Com Levels Raised 34 | . 1 . 3 1 . 1 2 3 2 2 . 1 1 2 . 4 . . 3 3 . 1 2 2 XP Earned 55152 | 3000 1830 850 4554 1055 350 1500 3205 4471 2514 2700 500 500 2730 2644 200 5042 316 244 4318 4020 469 1790 3321 3029 XP Spent 53985 | 3000 800 . 4330 1200 800 1400 3100 3900 2000 2900 . 2600 2200 2500 . 5650 800 . 4250 3400 . 2950 2300 3905 Upgrades 79 | 6 1 . 17 2 1 1 5 7 1 2 . 1 8 2 . 3 1 . 6 4 . 5 1 5 Power Slot 1 | . . . 1 . . . . . . . . . . . . . . . . . . . . . Propulsion Slot 7 | 1 . . 2 . . . . 1 . . . . . 1 . . . . . . . 1 1 . Utility Slot 9 | 1 1 . . 1 . 1 1 . 1 1 . 1 . . . 1 . . . . . . . . Weapon Slot 3 | 1 . . . . 1 . . . . . . . . . . . . . 1 . . . . . Core Integrity 9 | . . . 8 . . . . . . . . . . . . . . . . . . . . 1 Heat Dissipation 5 | . . . 5 . . . . . . . . . . . . . . . . . . . . . Energy Generation 3 | . . . . . . . . . . . . . 2 . . . 1 . . . . . . . Energy Storage 4 | . . . . . . . . . . . . . . . . . . . . . . 4 . . Mass Support 4 | . . . . 1 . . . . . 1 . . . . . . . . 1 1 . . . . Inventory Capacity 6 | 3 . . 1 . . . . . . . . . . . . 2 . . . . . . . . Melee Accuracy 10 | . . . . . . . 4 1 . . . . . . . . . . 1 . . . . 4 Hack Attack % 4 | . . . . . . . . 3 . . . . . 1 . . . . . . . . . . Hack Defense % 2 | . . . . . . . . 2 . . . . . . . . . . . . . . . . KI Resistance % 4 | . . . . . . . . . . . . . 2 . . . . . 1 1 . . . . TH Resistance % 4 | . . . . . . . . . . . . . 2 . . . . . 1 1 . . . . EX Resistance % 4 | . . . . . . . . . . . . . 2 . . . . . 1 1 . . . . Protomatter Created 2808 | . 129 . 19 11 . . 49 331 129 149 . . 142 46 . . 36 . 348 247 . 785 314 73 Integrity Restored 7581 | . 329 . 286 15 . . 147 987 343 311 . 16 203 425 . 116 108 . 938 530 813 1239 373 402 Core 6148 | . 329 . 230 15 . . 147 955 329 244 . . 141 419 . 62 108 . 676 386 813 699 261 334 Parts 1433 | . . . 56 . . . . 32 14 67 . 16 62 6 . 54 . . 262 144 . 540 112 68 Protomatter Decayed 595 | . . . 54 . . . . . . 5 . . 5 . 164 30 . . 13 39 . 47 238 . Game ------ Seed ZioniteSupersonicInsulator Manual? 0 Play Time 04:29:30 Cumulative 70.7 hours Start 2024.02.17 @ 00:14:16 End 2024.02.18 @ 13:47:46 Sessions 32 Manual Loads 0 Difficulty Rogue Special Mode Winter2019/RPGLIKE Game No. 61 Rogue 59 Adventurer 2 Explorer 0 Win Type - Total 1 Types 1/0/0/0/0/0/0/0/0 Lore% 30 Gallery% 53 Achievement% 39 Wizard Run 0 Options --------- ASCII 0 Keyboard 0 Movement Mouse Keybinds 1 Fullscreen 2 Font 18/SmallcapsGlow Map View 76x50 Tactical HUD 1 Map Filters NONE Filters NONE Steam 1 RUN: 4d762601-a784-4dd5-8b7f-d8670faa2190